bitfinex/quotes_ETHUSD_20250815
["timestamp","ask_amount","ask_price","bid_price","bid_amount"]
[1755230480484,3.321,4635.3,4635.2,0.4471]
[1755230480684,3.321,4635.3,4635.2,0.9094]
[1755230481189,3.32,4635.3,4635.2,0.9094]
[1755230481389,0.4623,4636.2,4635.2,0.9094]
[1755230481594,9.741137,4636.1,4635.3,0.9094]
[1755230481916,2.15703192,4636.0,4635.4,0.8967]
[1755230482217,1.76207944,4636.7,4635.5,0.91827264]
[1755230482420,1.76207944,4636.7,4635.6,0.8967]
[1755230482421,2.1568065,4636.5,4635.6,0.8967]
[1755230482634,2.15689234,4636.3,4635.7,0.8967]
[1755230482788,3.321,4636.4,4635.7,0.4471]
[1755230483106,2.15689234,4636.3,4635.8,0.4496]
[1755230483302,1.76207944,4636.7,4635.8,0.4496]
[1755230483515,5.08207944,4636.7,4635.9,0.4471]
[1755230483728,5.08207944,4636.7,4636.0,0.4496]
[1755230483889,5.08207944,4636.7,4636.0,2.6065923]
[1755230484089,5.08207944,4636.7,4636.1,0.8967]
[1755230484288,5.08207944,4636.7,4636.2,0.8967]
[1755230484622,5.08207944,4636.7,4636.3,0.8967]
[1755230484784,5.08207944,4636.7,4636.4,0.4496]
[1755230484984,5.08207944,4636.7,4636.5,0.4496]
[1755230485186,5.08207944,4636.7,4636.4,0.4471]
[1755230485428,5.08207944,4636.7,4636.6,0.4496]
[1755230485598,5.08207944,4636.7,4635.9,2.60667752]
[1755230485919,5.08207944,4636.7,4636.0,0.8967]
[1755230486091,7.23878801,4636.7,4636.1,0.4496]
[1755230486412,5.08207944,4636.7,4636.1,0.4496]
[1755230486629,1.76207944,4636.7,4636.1,0.4496]
[1755230486799,1.76207944,4636.7,4636.2,0.46866938]
[1755230486996,1.76207944,4636.7,4636.3,2.60644737]
[1755230487189,1.76207944,4636.7,4636.2,2.15693406]
[1755230487386,1.76207944,4636.7,4636.4,0.8967]
[1755230487890,1.76207944,4636.7,4636.6,0.108]
[1755230488404,1.76207944,4636.7,4636.6,0.5576]
[1755230488603,1.76207944,4636.7,4636.6,1.0047]
[1755230491021,1.76207944,4636.7,4636.6,0.5576]
[1755230491318,5.47553221,4637.1,4636.6,0.5576]
[1755230491519,5.47553221,4637.1,4636.6,0.108]
[1755230491823,5.47553221,4637.1,4636.7,0.4496]
[1755230492119,5.47552285,4637.1,4636.7,0.4496]
[1755230492919,5.47552285,4637.1,4636.6,0.108]
[1755230493624,5.47552285,4637.1,4636.6,0.5576]
[1755230494929,0.108,4637.3,4636.7,0.4496]
[1755230495093,3.315,4637.2,4636.7,0.4496]
[1755230495299,0.108,4637.3,4636.7,0.4496]
[1755230495599,0.002,4638.2,4637.0,2.15655381]
[1755230495600,2.15605866,4638.1,4637.0,2.15655381]
[1755230495796,0.002,4638.2,4636.3,3.313]
[1755230495797,0.002,4638.2,4637.4,2.15634105]
[1755230495995,0.002,4638.2,4637.7,0.108]
[1755230496410,2.15802984,4638.2,4637.7,0.108]
[1755230496818,3.314,4638.1,4637.7,0.108]
[1755230497729,0.9308,4638.0,4637.7,0.108]
[1755230498030,2.1563913,4637.4,4636.9,0.108]
[1755230498202,5.4693913,4637.4,4636.9,0.108]
[1755230498524,2.15642723,4637.3,4636.5,2.15679365]
[1755230498729,2.15642723,4637.3,4636.7,0.108]
[1755230499148,4.2438,4637.4,4636.7,0.108]
[1755230499309,6.40020587,4637.4,4636.7,0.108]
[1755230499632,2.15643425,4637.3,4636.7,0.108]
[1755230499831,2.15648151,4637.2,4636.7,0.108]
[1755230500037,6.40021872,4637.4,4636.7,0.108]
[1755230501114,3.313,4637.3,4636.8,2.17822635]
[1755230501310,0.108,4637.7,4637.1,2.15652023]
[1755230501560,3.42,4637.9,4637.2,0.47116473]
[1755230501726,3.42,4637.9,4637.3,2.26441836]
[1755230502041,3.312,4637.9,4637.3,2.26441836]
[1755230502346,3.312,4638.0,4637.3,2.26441836]
[1755230502733,3.312,4638.0,4637.4,2.15636893]
[1755230502911,2.26406018,4638.1,4637.3,0.108]
[1755230503107,2.26406018,4638.1,4637.4,2.15633791]
[1755230503108,3.312,4638.0,4637.4,2.15633791]
[1755230503313,3.312,4638.0,4637.4,0.4496]
[1755230503514,3.312,4638.0,4637.1,2.15647566]
[1755230504056,0.108,4637.5,4637.2,0.02156473]
[1755230504340,0.108,4637.5,4637.0,2.15654948]
[1755230504640,0.108,4637.5,4636.9,2.26460488]
[1755230504840,0.108,4637.5,4636.9,0.108]
[1755230505661,0.9308,4637.4,4636.6,0.108]
[1755230505963,4.2418,4637.4,4636.6,2.26471075]
[1755230506315,2.26437449,4637.5,4636.6,2.26471075]
[1755230506316,0.108,4637.5,4636.6,2.26472319]
[1755230506517,2.15605528,4638.1,4637.2,2.15647258]
[1755230506714,3.422,4638.2,4637.4,0.108]
[1755230507012,2.15609767,4638.1,4637.4,0.108]
[1755230507418,3.422,4638.2,4637.4,0.108]
[1755230507419,2.15614828,4637.9,4637.4,0.108]
[1755230507615,0.4643,4638.0,4637.4,0.108]
[1755230507837,2.15620052,4637.8,4636.9,2.15657436]
[1755230508042,2.15620052,4637.8,4637.1,0.108]
[1755230508237,5.46920052,4637.8,4637.1,0.108]
[1755230508616,0.4665,4637.7,4637.1,0.108]
[1755230509546,2.62274293,4637.7,4637.1,0.108]
[1755230509916,0.4665,4637.7,4637.1,0.108]
[1755230512053,2.15820327,4637.8,4637.1,0.108]
[1755230513223,2.62267594,4637.8,4637.1,0.108]
[1755230514058,0.4527,4637.7,4637.1,0.108]
[1755230514350,2.62558773,4637.6,4637.1,0.108]
[1755230514551,0.922,4637.5,4637.1,0.108]
[1755230514951,0.922,4637.4,4637.1,0.108]
[1755230515327,2.1563435,4637.5,4637.1,0.108]
[1755230515658,0.922,4637.4,4637.1,0.108]
[1755230517139,2.15638381,4637.4,4637.1,0.108]
[1755230517457,0.922,4637.3,4637.1,0.108]
[1755230517656,0.922,4637.2,4637.1,0.108]
[1755230518155,0.4693,4637.2,4637.1,0.108]
[1755230518536,0.922,4637.2,4637.1,0.108]
[1755230518736,3.07847373,4637.2,4636.6,0.001]
[1755230519061,0.922,4637.2,4636.7,0.108]
[1755230520554,3.87966214,4637.4,4636.7,2.26469295]
[1755230520755,0.108,4637.4,4636.7,2.26469295]
[1755230521144,0.57266214,4637.4,4636.7,2.26469295]
[1755230521667,0.57266214,4637.4,4636.7,0.108]
[1755230521833,2.15648105,4637.2,4636.7,0.108]
[1755230522030,3.07848105,4637.2,4636.7,0.108]
[1755230522336,0.922,4637.1,4636.7,0.108]
[1755230522870,0.922,4637.0,4636.7,0.108]
[1755230524235,0.4693,4637.0,4636.7,0.108]
[1755230524770,0.4693,4636.9,4636.7,0.108]
[1755230524979,0.922,4636.9,4636.7,0.108]
[1755230525135,0.57266214,4637.4,4636.7,0.108]
[1755230525342,0.002,4637.8,4636.8,0.12956659]
[1755230525582,0.002,4637.8,4637.3,2.1564236]
[1755230525865,0.002,4637.8,4637.2,2.26447179]
[1755230526068,0.002,4637.8,4637.2,0.108]
[1755230526670,0.002,4637.8,4637.2,2.26447079]
[1755230527038,0.002,4637.8,4637.2,0.108]
[1755230528462,0.48771705,4637.8,4637.2,0.108]
[1755230528777,0.4527,4637.7,4637.2,0.108]
[1755230529069,3.304,4637.6,4637.2,0.108]
[1755230529376,4.226,4637.6,4637.2,0.108]
[1755230530373,0.4693,4637.5,4636.6,0.001]
[1755230530576,0.922,4637.5,4637.0,0.108]
[1755230531453,0.922,4637.5,4637.0,2.26456141]
[1755230532255,0.922,4637.4,4637.0,2.26456141]
[1755230532477,0.922,4637.4,4637.0,0.108]
[1755230533064,0.922,4637.4,4637.0,2.26455146]
[1755230533269,3.412,4637.6,4637.0,2.26455146]
[1755230533981,3.412,4637.6,4637.1,2.15651592]
[1755230534587,0.002,4637.8,4637.5,2.15633423]
[1755230534769,0.002,4637.8,4637.5,0.108]
[1755230537251,0.002,4637.8,4637.5,2.26433107]
[1755230537454,0.002,4637.8,4637.5,2.26432794]
[1755230537754,0.002,4637.8,4637.5,0.108]
[1755230537953,0.002,4637.8,4637.7,2.15624124]
[1755230538987,0.002,4637.8,4637.6,2.60178724]
[1755230539279,0.002,4637.8,4637.6,2.15628724]
[1755230539485,0.002,4637.8,4637.7,2.15624124]
[1755230540655,0.002,4637.8,4637.6,2.1562846]
[1755230542957,0.002,4637.8,4637.5,0.108]
[1755230543370,0.002,4637.8,4637.6,2.15628364]
[1755230543986,0.002,4637.8,4637.6,2.15626908]
[1755230544687,0.002,4637.8,4637.7,2.15624124]
[1755230544892,0.002,4637.8,4637.7,2.58384124]
[1755230545108,0.002,4637.8,4637.6,2.15628306]
[1755230549513,0.002,4637.8,4637.5,0.108]
[1755230549514,0.002,4637.8,4637.7,2.15624124]
[1755230550433,0.002,4637.8,4637.6,2.15628683]
[1755230552413,0.002,4637.8,4637.7,2.15624124]
[1755230552908,0.108,4638.4,4637.7,2.15624124]
[1755230552909,0.108,4638.4,4638.1,2.15601136]
[1755230553235,0.11,4638.8,4638.2,2.26400721]
[1755230553423,0.11,4638.8,4638.3,2.15595976]
[1755230553630,0.11,4638.8,4638.2,0.108]
[1755230553837,0.5429,4638.8,4638.2,0.108]
[1755230555406,0.4526,4638.7,4638.2,0.108]
[1755230555807,0.8855,4638.6,4637.9,3.292]
[1755230556007,0.8855,4638.5,4638.0,0.108]
[1755230556537,0.8855,4638.4,4638.0,0.108]
[1755230556733,0.46500971,4638.6,4638.0,0.108]
[1755230556902,0.8855,4638.3,4638.0,0.108]
[1755230557107,0.46500971,4638.6,4638.0,0.108]
[1755230557436,0.8855,4638.2,4638.0,0.108]
[1755230558116,0.4329,4638.2,4638.0,0.108]
[1755230558434,0.8855,4638.2,4638.0,0.108]
[1755230559018,1.08700004,4638.1,4638.0,0.108]
[1755230559235,0.8855,4638.1,4637.9,3.292]
[1755230559833,1.08700004,4638.1,4637.9,3.292]
[1755230560022,0.8855,4638.1,4637.9,3.292]
[1755230560422,1.08700004,4638.1,4637.8,2.26418187]
[1755230560639,0.8855,4638.1,4637.8,2.26418187]
[1755230560834,0.8855,4638.1,4637.8,0.108]
[1755230561649,0.8855,4638.1,4637.8,2.26418122]
[1755230563455,0.8855,4638.1,4637.8,0.108]
[1755230564954,0.108,4638.4,4637.8,2.26419237]
[1755230566149,0.108,4638.4,4637.9,2.17769045]
[1755230566350,0.108,4638.4,4637.8,2.26418741]
[1755230566650,0.108,4638.4,4637.9,2.17770492]
[1755230566847,0.108,4638.4,4637.9,2.15614344]
[1755230567017,0.8855,4638.3,4637.9,2.15614344]
[1755230567220,0.8855,4638.3,4637.8,2.26418939]
[1755230567730,0.108,4638.4,4637.9,2.17770943]
[1755230567935,0.20161237,4638.3,4637.9,2.17770943]
[1755230568141,0.20161237,4638.2,4637.9,2.17770943]
[1755230568450,0.20161237,4638.1,4637.9,2.17770943]
[1755230568756,0.20161237,4638.0,4637.9,2.17770943]
[1755230568925,0.20161237,4638.3,4637.8,0.108]
[1755230569116,0.20161237,4638.2,4637.9,2.15614762]
[1755230569319,0.20161237,4638.1,4638.0,0.02156101]
[1755230569842,0.46500971,4638.6,4638.0,2.15610176]
[1755230569843,0.20161237,4638.3,4638.0,2.15610176]
[1755230570024,0.20161237,4638.2,4638.0,2.15610176]
[1755230570225,0.20161237,4638.1,4638.0,2.15610176]
[1755230570450,0.20161237,4638.5,4638.0,2.15610176]
[1755230570649,0.20161237,4638.4,4638.0,2.15610176]
[1755230570958,0.57300971,4638.6,4638.0,2.15610176]
[1755230570959,0.20161237,4638.3,4638.0,2.15610176]
[1755230571149,0.20161237,4638.2,4638.1,2.15603983]
[1755230571336,0.20161237,4638.2,4638.0,2.15609457]
[1755230571538,0.20161237,4638.1,4637.9,2.15613803]
[1755230571727,0.20161237,4638.5,4637.9,2.15613803]
[1755230571924,0.20161237,4638.4,4637.9,2.15613803]
[1755230572150,0.20161237,4638.3,4637.9,2.15613803]
[1755230572337,0.20161237,4638.2,4637.9,2.15613803]
[1755230572539,0.20161237,4638.1,4637.9,2.15613803]
[1755230572738,0.20161237,4638.5,4637.8,0.108]
[1755230573054,0.9666,4638.3,4637.9,2.1561446]
[1755230573577,0.4692,4638.3,4637.9,2.1561446]
[1755230573731,0.4974,4638.2,4637.9,2.1561446]
[1755230574263,0.4692,4638.3,4637.9,2.1561446]
[1755230574562,0.4692,4638.3,4638.0,2.15609896]
[1755230574856,0.4974,4638.5,4638.0,2.15609896]
[1755230575058,0.4974,4638.5,4637.9,2.15614825]
[1755230575426,0.4974,4638.5,4638.0,2.1560987]
[1755230577164,0.108,4638.6,4638.5,2.15586935]
[1755230577374,0.108,4638.6,4638.5,5.90226935]
[1755230577660,0.002,4639.2,4638.7,2.1557764]
[1755230577863,0.002,4639.2,4638.7,2.17733416]
[1755230578043,0.002,4639.2,4638.7,2.6161764]
[1755230581180,0.002,4639.2,4638.7,2.1557764]
[1755230586204,0.002,4639.2,4638.7,3.1712764]
[1755230586506,0.002,4639.2,4638.7,2.7241764]
[1755230589103,0.002,4639.2,4638.7,2.74573416]
[1755230589301,0.002,4639.2,4638.7,2.7241764]
[1755230589786,0.002,4639.2,4638.7,6.0091764]
[1755230592073,0.002,4639.2,4638.7,5.5487764]
[1755230600418,1e-08,4638.8,4638.7,6.4562764]
[1755230600723,0.002,4639.2,4639.0,2.15563699]
[1755230600724,1e-08,4639.1,4639.0,2.15563699]
[1755230601023,1e-08,4639.1,4639.0,5.56919335]
[1755230601312,1e-08,4639.3,4639.2,2.15554405]
[1755230601609,1e-08,4639.3,4639.2,5.46109949]
[1755230601915,1e-08,4639.3,4639.2,6.35964405]
[1755230602208,1e-08,4639.3,4639.2,6.44598505]
[1755230608505,0.00029602,4639.4,4639.3,2.15549759]
[1755230608830,0.00029602,4639.4,4639.3,2.65005256]
[1755230609137,0.00029602,4639.4,4639.3,2.75805256]
[1755230610738,0.00029602,4639.4,4639.3,2.84439056]
[1755230611133,0.00029602,4639.4,4639.3,3.29149056]
[1755230614245,0.00029602,4639.4,4639.3,2.82283559]
[1755230614456,0.00029602,4639.4,4639.3,5.43849759]
[1755230617647,0.00029602,4639.4,4639.3,5.52483459]
[1755230618729,0.00029602,4639.4,4639.3,9.77283455]
[1755230621964,0.00029602,4639.4,4639.3,9.76598449]
[1755230622150,1e-08,4639.7,4639.6,2.15535822]
[1755230622327,0.002,4640.2,4640.1,2.15512596]
[1755230622521,0.002,4640.2,4640.1,5.45967721]
[1755230622744,0.002,4640.2,4640.1,5.43812596]
[1755230622947,0.002,4640.3,4640.2,2.15507952]
[1755230623255,0.002,4640.3,4640.2,2.64963031]
[1755230623426,0.002,4640.3,4640.2,2.15507952]
[1755230623769,0.002,4640.3,4640.2,2.17663031]
[1755230624130,0.002,4640.3,4640.2,2.15507952]
[1755230624329,0.002,4640.3,4640.2,2.26307952]
[1755230624837,0.002,4640.3,4640.2,2.34940052]
[1755230626030,0.9407,4640.3,4640.2,2.26307952]
[1755230626661,0.002,4640.3,4640.2,2.26307952]
[1755230626866,0.002,4640.7,4640.3,2.15503307]
[1755230627159,0.002,4640.7,4640.4,2.15498663]
[1755230627327,0.002,4640.7,4640.6,2.15489376]
[1755230627530,0.002,4640.7,4640.6,5.56644269]
[1755230627747,0.002,4640.7,4640.6,5.54489376]
[1755230627939,1e-08,4640.8,4640.7,2.15484732]
[1755230628169,0.4555,4641.8,4640.7,0.473]
[1755230628370,0.4555,4641.8,4641.7,2.15438309]
[1755230628686,0.9387,4641.8,4641.7,5.54438309]
[1755230630296,0.9387,4641.8,4641.7,0.108]
[1755230630491,0.9387,4641.8,4641.7,3.282]
[1755230631068,0.9387,4641.8,4641.7,5.43638309]
[1755230634887,0.9387,4641.8,4641.7,3.282]
[1755230635704,0.9387,4641.8,4641.7,5.43638309]
[1755230635904,0.9387,4641.8,4641.7,3.282]
[1755230638308,0.9387,4641.8,4641.7,5.43638309]
[1755230638685,0.9387,4641.8,4641.7,3.282]
[1755230638904,0.46390706,4642.9,4641.7,5.43635047]
[1755230639123,0.9264,4641.8,4641.7,3.282]
[1755230639984,0.9264,4641.8,4641.7,5.43638309]
[1755230640516,0.9264,4641.8,4641.7,5.54438309]
[1755230641509,0.9264,4641.8,4641.7,3.39]
[1755230642515,0.9264,4641.8,4641.7,5.54438309]
[1755230642673,0.108,4642.8,4641.7,3.39]
[1755230642877,0.9264,4642.7,4642.4,0.108]
[1755230643073,0.9264,4642.6,4642.5,3.281]
[1755230644224,0.9264,4642.6,4642.5,5.43501184]
[1755230644516,0.9264,4642.6,4642.5,3.281]
[1755230644929,0.4684,4643.0,4642.5,3.281]
[1755230645079,0.9264,4642.9,4642.6,2.15392118]
[1755230645418,0.9264,4642.8,4642.7,3.281]
[1755230645923,0.4684,4643.1,4642.7,5.54291905]
[1755230646081,0.108,4643.7,4642.8,2.15386677]
[1755230646281,0.108,4643.7,4643.0,0.108]
[1755230646512,0.108,4643.7,4643.1,3.281]
[1755230646981,0.9264,4643.6,4643.1,3.281]
[1755230647198,0.9264,4643.5,4643.1,3.281]
[1755230647397,0.002,4643.6,4643.1,3.281]
[1755230647398,0.9264,4643.4,4643.1,3.281]
[1755230647602,0.002,4643.6,4643.1,3.281]
[1755230647782,0.9264,4643.3,4643.1,3.281]
[1755230647993,0.9264,4643.2,4643.1,3.281]
[1755230650214,0.9264,4643.2,4643.0,0.108]
[1755230650379,0.9264,4643.1,4643.0,0.108]
[1755230651131,0.9264,4643.1,4642.9,3.28]
[1755230651297,0.9264,4643.0,4642.9,3.28]
[1755230651955,0.9264,4643.0,4642.7,0.108]
[1755230652298,0.108,4643.4,4642.7,0.108]
[1755230652541,1.0344,4643.4,4642.7,0.108]
[1755230652698,0.108,4643.4,4642.7,0.108]
[1755230653029,0.9264,4643.3,4642.8,3.28]
[1755230653206,0.9264,4643.2,4642.8,3.28]
[1755230653399,0.108,4643.4,4642.8,3.28]
[1755230653599,0.9264,4643.1,4642.8,3.28]
[1755230653830,0.108,4643.4,4642.8,3.28]
[1755230654016,0.9264,4643.0,4642.8,3.28]
[1755230654341,0.9264,4642.9,4642.8,3.28]
[1755230657829,0.458,4642.9,4642.8,3.28]
[1755230658026,0.9264,4642.9,4642.8,3.28]
[1755230659017,0.108,4643.1,4642.8,3.28]
[1755230659220,0.9284,4643.6,4642.8,3.28]
[1755230659419,0.108,4643.3,4642.8,3.28]
[1755230659945,0.9264,4643.2,4642.8,3.28]
[1755230660150,0.458,4643.2,4642.8,3.28]
[1755230660346,13.5681051,4642.9,4642.7,0.108]
[1755230660547,3.56093491,4642.8,4641.7,4.24799996]
[1755230660849,0.9264,4642.7,4641.4,3.28]
[1755230661150,0.9264,4642.6,4641.7,2.15437339]
[1755230661354,0.4684,4642.5,4641.7,2.15437339]
[1755230661650,0.9264,4642.5,4641.7,2.15437339]
[1755230662448,0.4288,4642.4,4641.7,2.15437339]
[1755230662848,0.4288,4642.4,4641.5,2.15443069]
[1755230663049,0.4288,4642.4,4641.4,3.28]
[1755230663353,0.4701,4642.3,4641.6,2.15438569]
[1755230663521,0.4701,4642.3,4641.7,2.15436699]
[1755230666046,0.4288,4642.2,4641.7,2.15436699]
[1755230666241,2.61812524,4642.8,4641.7,2.15436699]
[1755230666443,0.46424074,4642.8,4641.7,2.15436699]
[1755230666624,0.8989,4642.6,4641.7,2.15436699]
[1755230667161,0.4288,4642.5,4641.7,2.15436699]
[1755230667453,0.8989,4642.5,4641.7,2.15436699]
[1755230667826,0.8989,4642.4,4641.4,3.28]
[1755230668028,13.5681051,4642.3,4641.4,3.28]
[1755230668249,0.91531705,4642.2,4641.4,3.28]
[1755230668427,0.01641705,4642.2,4641.4,3.28]
[1755230668624,0.8989,4642.1,4641.4,3.28]
[1755230668949,2.15429143,4641.9,4641.4,3.28]
[1755230669357,0.8989,4641.8,4641.4,3.28]
[1755230669588,13.5681051,4641.5,4640.4,0.001]
[1755230669868,2.15456876,4641.3,4640.4,0.001]
[1755230670039,0.4643859,4641.4,4640.4,0.001]
[1755230670040,1.3632859,4641.4,4640.4,0.001]
[1755230670350,0.7740927,4642.1,4641.0,2.15470333]
[1755230670351,0.4643859,4641.9,4641.0,2.15470333]
[1755230670551,0.108,4641.7,4641.0,3.387]
[1755230671264,0.48651705,4641.6,4641.0,3.387]
[1755230671465,2.15447592,4641.5,4641.0,3.387]
[1755230671633,0.8989,4641.4,4641.0,3.279]
[1755230671838,1.0069,4641.3,4641.0,3.279]
[1755230672337,2.15466492,4641.1,4640.7,0.108]
[1755230672538,0.01641705,4641.1,4640.5,3.28]
[1755230672738,14.4670051,4641.0,4640.4,0.001]
[1755230672959,2.1549402,4640.5,4640.4,0.001]
[1755230673284,22.1441823,4640.5,4640.4,0.001]
[1755230673438,23.50645314,4640.5,4640.4,0.001]
[1755230673935,26.78645314,4640.5,4640.4,0.001]
[1755230674256,26.3230823,4640.5,4640.4,0.001]
[1755230675550,23.0430823,4640.5,4640.4,0.001]
[1755230675750,26.3230823,4640.5,4640.4,0.001]
[1755230676172,19.9019453,4640.5,4640.4,0.001]
[1755230676362,23.0430823,4640.5,4640.4,0.001]
[1755230676561,26.3230823,4640.5,4640.4,0.001]
[1755230677455,2.15517241,4640.0,4639.7,0.001]
[1755230677760,2.15526531,4639.8,4639.7,0.001]
[1755230678155,9.47530231,4639.8,4639.7,0.001]
[1755230682283,3.05416531,4639.8,4639.7,0.001]
[1755230682484,3.07058236,4639.8,4639.7,0.001]
[1755230682654,12.77271936,4639.8,4639.7,0.001]
[1755230682855,12.75630231,4639.8,4639.7,0.001]
[1755230683187,12.75630231,4639.8,4639.2,0.001]
[1755230683188,2.15549759,4639.3,4639.2,0.001]
[1755230683366,25.53373969,4639.3,4639.2,0.001]
[1755230683550,25.96253969,4639.3,4639.2,0.001]
[1755230683754,26.43263969,4639.3,4639.2,0.001]
[1755230685389,26.59607093,4639.3,4639.2,0.001]
[1755230686174,2.15559052,4639.1,4638.1,0.001]
[1755230686371,2.26368345,4638.9,4638.1,0.001]
[1755230686689,8.68482045,4638.9,4638.1,0.001]
[1755230686884,9.58372045,4638.9,4638.1,0.001]
[1755230687214,2.1557764,4638.7,4638.1,0.001]
[1755230687408,25.44243555,4638.7,4638.1,0.001]
[1755230687580,26.78561347,4638.7,4638.1,0.001]
[1755230690085,2.15600879,4638.2,4638.1,0.001]
[1755230690314,19.13053094,4638.2,4638.1,0.001]
[1755230690522,2.15614825,4637.9,4637.8,0.001]
[1755230690824,2.15642723,4637.3,4637.2,0.001]
[1755230691111,19.00653233,4637.3,4637.2,0.001]
[1755230691313,19.5752273,4637.3,4637.2,0.001]
[1755230691490,20.4741273,4637.3,4637.2,0.001]
[1755230692992,6.0071222,4637.3,4637.2,0.001]
[1755230693822,20.4969273,4637.3,4637.2,0.001]
[1755230694328,26.9180643,4637.3,4637.2,0.001]
[1755230695323,2.15665976,4636.8,4636.7,0.001]
[1755230695524,25.90501388,4636.8,4636.7,0.001]
[1755230695839,26.91829683,4636.8,4636.7,0.001]
[1755230696122,27.68588494,4636.8,4636.7,0.001]
[1755230697217,26.91829683,4636.8,4636.7,0.001]
[1755230697742,25.99659683,4636.8,4636.7,0.001]
[1755230698242,23.17999683,4636.8,4636.7,0.001]
[1755230698430,26.46299683,4636.8,4636.7,0.001]
[1755230699021,25.99759683,4636.8,4636.7,0.001]
[1755230699527,26.91929683,4636.8,4636.7,0.001]
[1755230699912,2.15670627,4636.7,4636.2,0.001]
[1755230700140,9.97665529,4636.7,4636.2,0.001]
[1755230700341,9.03853824,4636.7,4636.2,0.001]
[1755230700543,2.61740124,4636.7,4636.2,0.001]
[1755230700856,10.19185325,4636.7,4636.3,0.4386]
[1755230701033,13.47485325,4636.7,4636.2,0.001]
[1755230701242,25.88964334,4636.7,4636.2,0.001]
[1755230701418,2.15689234,4636.3,4636.2,0.001]
[1755230701751,12.44614136,4636.3,4636.2,0.001]
[1755230701913,12.42972431,4636.3,4636.2,0.001]
[1755230702522,13.35142431,4636.3,4636.2,0.001]
[1755230702812,15.09018381,4636.3,4636.2,0.001]
[1755230703228,13.55180577,4636.3,4636.2,0.001]
[1755230703431,13.55180577,4636.3,4634.2,2.15782739]
[1755230703432,11.51513539,4636.3,4634.0,0.499]
[1755230703632,11.51513539,4636.3,4634.5,0.4386]
[1755230703633,0.87746961,4634.7,4634.5,0.4386]
[1755230703941,0.46069497,4634.6,4634.5,0.4386]
[1755230704241,1.23016458,4634.6,4634.5,0.4386]
[1755230705044,1.23016458,4634.6,4634.5,0.8867]
[1755230705544,1.23016458,4634.6,4634.1,0.108]
[1755230705545,2.15773006,4634.5,4634.1,0.108]
[1755230705855,0.76916912,4634.3,4634.2,0.4386]
[1755230706217,0.87716912,4634.3,4634.2,0.4386]
[1755230706617,0.87716912,4634.3,4634.0,0.9471]
[1755230706618,0.87699821,4634.3,4634.0,0.499]
[1755230707039,0.76899821,4634.2,4634.1,0.4386]
[1755230707628,2.92686796,4634.2,4634.1,0.4386]
[1755230707937,2.15791631,4634.1,4634.0,0.499]
[1755230708263,6.37903336,4634.1,4634.0,0.499]
[1755230708412,6.36261631,4634.1,4634.0,0.499]
[1755230709152,6.36261631,4634.1,4633.5,0.499]
[1755230709153,2.15814917,4633.6,4633.5,0.499]
[1755230709317,25.53839127,4633.6,4633.5,0.499]
[1755230709512,2.15833549,4633.2,4633.1,0.001]
[1755230709719,5.56575254,4633.2,4633.1,0.001]
[1755230710044,5.54933549,4633.2,4633.1,0.001]
[1755230710630,6.47103549,4633.2,4633.1,0.001]
[1755230710963,14.42760629,4633.2,4633.1,0.001]
[1755230711113,12.89217249,4633.2,4633.1,0.001]
[1755230711316,13.09184813,4633.2,4633.1,0.001]
[1755230711513,2.15852184,4632.8,4632.7,0.001]
[1755230711716,2.15909218,4631.6,4630.9,0.4386]
[1755230711949,0.9217,4633.1,4630.9,0.4386]
[1755230711950,0.76668359,4631.2,4630.9,0.4386]
[1755230712168,0.76668359,4631.2,4630.7,0.108]
[1755230712349,0.76668359,4631.2,4631.0,0.4386]
[1755230712554,0.76668359,4631.2,4631.1,0.4386]
[1755230712726,0.87468359,4631.4,4631.1,0.8867]
[1755230713068,0.76668359,4631.3,4631.2,0.8867]
[1755230713375,0.76668359,4631.4,4631.2,0.9947]
[1755230713667,0.57422007,4631.3,4631.2,0.5561]
[1755230714039,0.57422007,4631.5,4631.2,2.71536757]
[1755230714240,0.57422007,4631.9,4631.7,2.15903447]
[1755230714457,0.57422007,4632.3,4632.2,2.15880143]
[1755230714787,0.57422007,4632.7,4632.2,0.9447]
[1755230715001,0.68222007,4632.3,4631.6,0.4386]
[1755230715287,2.15903822,4631.7,4630.9,0.108]
[1755230715459,2.74971833,4631.6,4630.9,0.108]
[1755230715639,0.108,4631.5,4630.9,0.108]
[1755230716050,2.15917729,4631.4,4630.9,0.108]
[1755230716342,0.57422007,4631.6,4630.4,2.60773732]
[1755230716343,0.57422007,4631.3,4630.6,0.4386]
[1755230716694,0.108,4631.1,4630.6,0.4386]
[1755230716992,0.57422007,4631.9,4630.7,2.60757096]
[1755230717187,0.57422007,4632.1,4631.7,2.16002487]
[1755230717488,0.45951632,4632.0,4631.7,0.001]
[1755230717648,0.45951632,4631.9,4631.7,0.001]
[1755230717846,0.45951632,4631.8,4631.7,0.4396]
[1755230718393,0.45951632,4631.8,4631.7,0.001]
[1755230718744,0.45951632,4631.8,4631.7,3.04673447]
[1755230721276,0.45951632,4631.8,4631.7,0.001]
[1755230721464,0.45951632,4631.8,4631.7,3.04673447]
[1755230722047,0.57422007,4632.7,4632.4,2.15870822]
[1755230722249,0.46046223,4632.6,4632.5,3.04496162]
[1755230722475,0.46046223,4632.6,4631.7,0.001]
[1755230722679,0.4604754,4632.5,4632.2,0.4382]
[1755230722889,0.4604754,4632.4,4632.0,2.15889464]
[1755230723157,0.4604754,4632.3,4632.2,2.15880143]
[1755230723359,0.4604754,4632.3,4632.2,2.59700143]
[1755230724098,0.4604754,4632.3,4632.2,3.04510143]